bitfinex/quotes_SOLUSD_20250416
["timestamp","ask_amount","ask_price","bid_price","bid_amount"]
[1744782583524,48.41606651,125.29,125.28,0.063]
[1744782586323,33.98148295,125.29,125.28,0.063]
[1744782586524,48.41606651,125.29,125.28,0.063]
[1744782591136,40.43458356,125.29,125.28,0.063]
[1744782591335,14.6,125.32,125.28,0.063]
[1744782591538,14.43458356,125.31,125.28,0.063]
[1744782591712,48.41479264,125.31,125.28,0.063]
[1744782592334,33.98020908,125.31,125.28,0.063]
[1744782592628,48.41479264,125.31,125.28,0.063]
[1744782593640,14.43458356,125.3,125.28,0.063]
[1744782594234,22.41556185,125.3,125.28,0.063]
[1744782594938,14.43458356,125.3,125.28,0.063]
[1744782595819,14.43458356,125.29,125.28,0.063]
[1744782596137,22.41606651,125.29,125.28,0.063]
[1744782597927,26.0,125.31,125.28,0.063]
[1744782598236,40.6,125.32,125.28,0.063]
[1744782598439,40.43458356,125.32,125.28,0.063]
[1744782600542,40.43458356,125.32,125.28,8.04512005]
[1744782600838,14.43458356,125.3,125.28,0.063]
[1744782601740,40.43458356,125.29,125.28,0.063]
[1744782602121,40.43458356,125.31,125.28,0.063]
[1744782602317,14.43458356,125.3,125.28,0.063]
[1744782602525,33.98083558,125.31,125.28,0.063]
[1744782602834,40.43458356,125.31,125.28,0.063]
[1744782603239,7.97829902,125.34,125.28,22.44218356]
[1744782603550,7.97702616,125.36,125.29,18.64964886]
[1744782603861,14.43458356,125.34,125.29,33.08423242]
[1744782604222,14.43458356,125.34,125.29,14.43458356]
[1744782604432,14.43458356,125.33,125.28,22.44218356]
[1744782604623,14.43458356,125.33,125.29,7.98148295]
[1744782604946,7.97855411,125.34,125.29,22.41606651]
[1744782605130,48.41255832,125.35,125.3,14.43458356]
[1744782605518,14.43458356,125.34,125.29,22.41606651]
[1744782606549,22.41298501,125.34,125.29,22.41606651]
[1744782606732,14.43458356,125.33,125.29,22.41606651]
[1744782607432,14.43458356,125.33,125.29,7.98148295]
[1744782608249,22.41374185,125.33,125.29,7.98148295]
[1744782609146,22.41374185,125.33,125.29,22.41606651]
[1744782610246,22.41374185,125.33,125.29,7.98148295]
[1744782610444,14.43458356,125.33,125.29,7.98148295]
[1744782611232,22.4135373,125.33,125.29,7.98148295]
[1744782611435,14.43458356,125.32,125.28,15.9893965]
[1744782611746,14.43458356,125.29,125.28,0.063]
[1744782613248,48.41606651,125.29,125.28,0.063]
[1744782615030,14.43458356,125.3,125.28,0.063]
[1744782615420,90.87988244,125.32,125.28,0.063]
[1744782615621,14.43458356,125.31,125.28,0.063]
[1744782616442,14.43458356,125.33,125.28,14.49758356]
[1744782616640,14.43458356,125.33,125.29,22.41557362]
[1744782616824,22.41366947,125.33,125.28,22.47940106]
[1744782617230,14.43458356,125.33,125.28,22.47940106]
[1744782617731,22.41362268,125.33,125.28,22.47940106]
[1744782618446,33.97860633,125.34,125.28,22.47940106]
[1744782618751,14.43458356,125.33,125.28,22.47940106]
[1744782619943,14.43458356,125.31,125.28,0.063]
[1744782620655,14.43458356,125.3,125.28,0.063]
[1744782620846,14.43458356,125.31,125.28,0.063]
[1744782621650,22.41484849,125.31,125.28,0.063]
[1744782625145,22.41381366,125.33,125.28,14.49758356]
[1744782625564,14.43458356,125.32,125.28,0.063]
[1744782625862,14.43458356,125.3,125.28,0.063]
[1744782626649,14.43458356,125.31,125.28,0.063]
[1744782627159,14.43458356,125.32,125.28,0.063]
[1744782628471,22.41440736,125.32,125.28,0.063]
[1744782628963,14.43458356,125.31,125.28,0.063]
[1744782629550,22.41440736,125.32,125.28,0.063]
[1744782629949,60.48281071,125.36,125.29,14.43458356]
[1744782630258,14.43458356,125.34,125.29,14.43458356]
[1744782631650,14.43458356,125.34,125.3,7.98084596]
[1744782632445,22.41304659,125.34,125.3,7.98084596]
[1744782633162,7.97795468,125.35,125.3,7.98084596]
[1744782633669,14.43458356,125.34,125.3,7.98084596]
[1744782636356,14.54,125.36,125.32,7.97957229]
[1744782636687,14.43458356,125.36,125.32,7.97957229]
[1744782637868,14.43458356,125.35,125.32,7.97957229]
[1744782638165,14.43458356,125.35,125.31,7.5569]
[1744782638370,22.41425864,125.32,125.28,22.7052]
[1744782638668,14.43458356,125.31,125.28,16.20714945]
[1744782639061,14.43458356,125.3,125.28,8.2252]
[1744782639561,14.43458356,125.31,125.28,8.2252]
[1744782640170,22.41485373,125.31,125.28,8.2252]
[1744782642266,14.43458356,125.29,125.28,0.063]
[1744782644147,22.41606651,125.29,125.28,0.063]
[1744782647185,56.8497739,125.29,125.26,0.063]
[1744782647349,14.43458356,125.27,125.26,0.063]
[1744782647682,14.43458356,125.28,125.26,0.063]
[1744782648046,14.48,125.29,125.26,0.063]
[1744782648260,40.43458356,125.3,125.26,8.04639453]
[1744782648774,14.43458356,125.33,125.28,14.43458356]
[1744782649445,14.43458356,125.31,125.26,35.71188087]
[1744782649647,14.43458356,125.31,125.26,50.14646443]
[1744782649849,14.43458356,125.3,125.26,50.14646443]
[1744782650965,7.979719,125.32,125.26,50.14646443]
[1744782651272,14.43458356,125.31,125.27,14.43458356]
[1744782651645,7.97918852,125.33,125.27,14.43458356]
[1744782651880,14.43458356,125.31,125.27,14.43458356]
[1744782652172,14.43458356,125.31,125.27,22.41686621]
[1744782653770,14.43458356,125.31,125.27,7.98228265]
[1744782656571,14.43458356,125.28,125.26,7.77]
[1744782656951,14.43458356,125.29,125.26,7.77]
[1744782657347,14.43458356,125.28,125.26,7.77]
[1744782657552,14.43458356,125.27,125.26,0.063]
[1744782658578,22.4173408,125.27,125.26,0.063]
[1744782663073,8.0147,125.32,125.26,0.063]
[1744782663074,21.50349403,125.32,125.26,0.063]
[1744782663380,14.43458356,125.3,125.26,14.49758356]
[1744782663581,14.43458356,125.31,125.26,14.49758356]
[1744782663802,22.41427032,125.32,125.27,14.43458356]
[1744782664661,22.41427032,125.32,125.27,22.41702837]
[1744782664973,22.41427032,125.32,125.27,14.43458356]
[1744782665173,14.43458356,125.31,125.27,14.43458356]
[1744782665977,14.43458356,125.31,125.26,22.48073578]
[1744782666661,22.41501309,125.31,125.27,14.43458356]
[1744782668089,14.43458356,125.29,125.26,0.063]
[1744782668287,14.43458356,125.27,125.26,0.063]
[1744782671363,22.41696528,125.28,125.26,0.063]
[1744782672061,26.0,125.3,125.26,0.063]
[1744782672062,14.43458356,125.29,125.26,0.063]
[1744782672261,26.0,125.3,125.26,14.49758356]
[1744782672475,48.41549971,125.3,125.26,0.063]
[1744782672985,40.43458356,125.3,125.26,0.063]
[1744782673892,48.415488,125.3,125.26,0.063]
[1744782674089,101.54964886,125.34,125.27,14.43458356]
[1744782674090,14.43458356,125.32,125.27,14.43458356]
[1744782674480,108.9,125.34,125.26,18.71264886]
[1744782674684,14.43458356,125.32,125.27,14.43458356]
[1744782675193,0.03,125.35,125.28,22.41670361]
[1744782675376,22.41288258,125.34,125.29,14.43458356]
[1744782676076,22.44252671,125.35,125.31,14.43458356]
[1744782676871,22.44252671,125.35,125.32,14.43458356]
[1744782676872,0.03,125.35,125.32,14.43458356]
[1744782677196,0.03,125.35,125.32,22.41400355]
[1744782677782,0.03,125.35,125.33,14.43458356]
[1744782677982,0.03,125.35,125.34,14.43458356]
[1744782678499,0.03,125.35,125.33,14.43458356]
[1744782679199,0.03,125.35,125.33,22.41306011]
[1744782679691,0.03,125.35,125.32,18.64964886]
[1744782679895,0.03,125.35,125.32,33.08423242]
[1744782680625,0.03,125.35,125.3,16.00835257]
[1744782680791,14.43458356,125.33,125.3,8.0277]
[1744782681102,14.43458356,125.34,125.3,8.0277]
[1744782681478,14.43458356,125.34,125.3,16.00851119]
[1744782681783,22.41298912,125.34,125.3,16.00851119]
[1744782682403,0.03,125.35,125.3,16.00851119]
[1744782682404,8.00795619,125.35,125.3,16.00851119]
[1744782682696,8.00795619,125.35,125.31,14.43458356]
[1744782682996,14.43458356,125.33,125.3,8.0277]
[1744782683198,14.43458356,125.33,125.3,6.3964]
[1744782684095,22.41332324,125.34,125.3,6.3964]
[1744782684299,7.97873968,125.34,125.3,28.81174401]
[1744782684506,22.44240973,125.35,125.3,28.81174401]
[1744782685799,22.41316779,125.34,125.3,6.3964]
[1744782686200,8.00790475,125.35,125.3,14.37718939]
[1744782686406,48.44248831,125.35,125.3,28.81177295]
[1744782688514,22.41292886,125.34,125.3,14.37718939]
[1744782689093,48.44249242,125.35,125.3,28.81177295]
[1744782691601,22.412958,125.34,125.3,6.3964]
[1744782692416,14.43458356,125.33,125.3,6.3964]
[1744782693412,14.43458356,125.32,125.27,34.74693242]
[1744782693591,14.43458356,125.31,125.27,15.64863986]
[1744782694214,14.43458356,125.3,125.27,7.666]
[1744782695411,14.43458356,125.31,125.27,15.64847533]
[1744782696017,14.43458356,125.3,125.27,7.666]
[1744782699611,14.43458356,125.3,125.27,15.64862662]
[1744782699914,33.97860088,125.34,125.28,14.43458356]
[1744782700087,14.43458356,125.33,125.28,14.43458356]
[1744782700917,14.43458356,125.33,125.29,22.41606651]
[1744782702292,22.41366264,125.33,125.28,26.63147053]
[1744782702499,14.43458356,125.31,125.27,15.64856429]
[1744782702704,14.43458356,125.3,125.27,15.64856429]
[1744782702997,14.43458356,125.31,125.27,15.64856429]
[1744782704121,22.41491772,125.31,125.27,7.666]
[1744782704299,22.41491772,125.31,125.27,15.64869958]
[1744782704502,14.43458356,125.31,125.27,15.64869958]
[1744782706018,14.43458356,125.31,125.27,30.08328314]
[1744782708321,14.43458356,125.32,125.27,30.08328314]
[1744782708629,7.97923939,125.33,125.27,30.08328314]
[1744782708630,0.03,125.35,125.29,14.43458356]
[1744782708921,14.43458356,125.34,125.29,14.43458356]
[1744782709717,14.43458356,125.31,125.27,15.6484928]
[1744782709924,14.43458356,125.32,125.27,30.08307636]
[1744782710223,14.43458356,125.33,125.28,33.08423242]
[1744782710417,14.43458356,125.33,125.28,14.43458356]
[1744782710640,14.43458356,125.32,125.28,18.64964886]
[1744782711318,14.43458356,125.32,125.29,7.98148295]
[1744782711515,14.43458356,125.31,125.28,7.98185757]
[1744782715403,14.43458356,125.31,125.27,15.64844499]
[1744782715831,7.98027551,125.31,125.27,7.666]
[1744782716024,14.43458356,125.28,125.26,0.063]
[1744782716222,22.4173408,125.27,125.26,0.063]
[1744782717031,14.43458356,125.27,125.26,0.063]
[1744782717211,7.98236037,125.28,125.26,0.063]
[1744782717407,26.0,125.29,125.26,0.063]
[1744782717614,40.43458356,125.29,125.26,0.063]
[1744782717817,14.43458356,125.28,125.26,0.063]
[1744782718016,40.43458356,125.29,125.26,0.063]
[1744782718634,48.41615577,125.29,125.26,0.063]
[1744782718822,40.43458356,125.29,125.26,0.063]
[1744782719133,7.98115705,125.3,125.26,0.063]
[1744782719435,14.43458356,125.29,125.26,0.063]
[1744782719933,14.43458356,125.28,125.26,0.063]
[1744782722534,14.43458356,125.27,125.26,0.063]
[1744782722724,14.43458356,125.28,125.26,0.063]
[1744782723114,9.25145115,125.28,125.26,0.063]
[1744782723734,17.23365127,125.28,125.26,0.063]
[1744782723947,9.25145115,125.27,125.26,0.063]
[1744782724239,17.23365127,125.28,125.26,0.063]
[1744782724639,9.25145115,125.29,125.26,0.063]
[1744782724850,17.23132854,125.32,125.27,9.25145115]
[1744782725143,17.23112429,125.32,125.27,17.35625115]
[1744782725334,9.25145115,125.28,125.26,0.063]
[1744782726612,17.23420839,125.27,125.26,0.063]
[1744782729337,9.25145115,125.27,125.26,0.063]
[1744782730130,17.23420839,125.27,125.26,0.063]
[1744782733453,18.64964886,125.26,125.24,0.063]
[1744782733659,10.86495115,125.25,125.24,0.063]
[1744782734035,47.87075575,125.25,125.23,0.063]
[1744782734226,72.25725575,125.24,125.23,0.063]
[1744782734849,43.23612058,125.24,125.23,0.063]
[1744782735149,48.45956533,125.24,125.23,0.063]
[1744782738555,14.4748959,125.25,125.23,0.063]
[1744782738748,22.4577138,125.27,125.23,0.063]
[1744782739129,14.4748959,125.27,125.23,14.5378959]
[1744782739348,22.45725507,125.28,125.23,14.5378959]
[1744782739736,22.45593032,125.3,125.25,14.4748959]
[1744782739969,14.4748959,125.28,125.24,6.2376]
[1744782740139,14.4748959,125.27,125.24,6.2376]
[1744782742350,22.45716172,125.28,125.24,6.2376]
[1744782742556,14.4748959,125.29,125.24,28.69707371]
[1744782743053,14.4748959,125.28,125.24,28.69707371]
[1744782743231,22.45709967,125.28,125.24,6.2376]
[1744782743830,14.4748959,125.27,125.24,6.2376]
[1744782745042,14.4748959,125.26,125.23,0.063]
[1744782745346,22.45851306,125.26,125.23,0.063]
[1744782746659,14.4748959,125.26,125.23,0.063]
[1744782747256,22.45830932,125.26,125.23,0.063]
[1744782747553,14.4748959,125.24,125.23,0.063]
[1744782748034,14.4748959,125.25,125.23,0.063]
[1744782749242,14.4748959,125.24,125.23,0.063]
[1744782751453,22.45956533,125.24,125.23,0.063]
[1744782752642,7.98339453,125.26,125.23,0.063]
[1744782752842,14.4748959,125.25,125.23,0.063]
[1744782753038,14.4748959,125.24,125.23,0.063]
[1744782753451,22.45956533,125.24,125.23,0.063]
[1744782754268,14.4748959,125.25,125.23,0.063]
[1744782754855,22.45911095,125.25,125.23,0.063]
[1744782755053,14.4748959,125.24,125.23,0.063]
[1744782755867,14.4748959,125.25,125.23,0.063]
[1744782757168,9.25719295,125.25,125.23,0.063]
[1744782757845,17.24145041,125.25,125.23,0.063]
[1744782758867,9.25719295,125.25,125.23,0.063]
[1744782760775,17.24071056,125.26,125.23,0.063]
[1744782761446,9.25719295,125.27,125.23,0.063]
[1744782761767,35.25719295,125.28,125.23,15.60779295]
[1744782762566,9.25719295,125.29,125.24,9.25719295]
[1744782762770,9.25719295,125.29,125.24,27.90684181]
[1744782762975,9.25719295,125.29,125.25,17.24122488]
[1744782764186,43.23828646,125.3,125.25,17.24122488]
[1744782764474,43.23828646,125.3,125.25,18.81662488]
[1744782765589,17.23886987,125.29,125.25,18.81662488]
[1744782766175,9.25719295,125.27,125.24,7.98437947]
[1744782766373,9.25719295,125.25,125.23,6.3506]
[1744782766766,9.25719295,125.26,125.23,6.3506]
[1744782767879,63.0287718,125.3,125.23,6.3506]
[1744782767880,9.25719295,125.25,125.23,6.3506]
[1744782772486,9.25719295,125.27,125.23,14.33584664]
[1744782775391,17.24002951,125.27,125.23,14.33584664]
[1744782780995,17.24002951,125.27,125.23,6.3506]
[1744782781288,7.98283656,125.27,125.23,6.3506]
[1744782781611,7.98148295,125.29,125.23,23.59305686]
[1744782781891,17.2386759,125.29,125.24,9.25719295]
[1744782782098,17.2386759,125.29,125.24,17.24126178]
[1744782782396,9.25719295,125.28,125.24,7.98406883]
[1744782783195,9.25719295,125.27,125.23,6.3506]
[1744782783491,9.25719295,125.25,125.23,0.063]
[1744782785098,9.25719295,125.24,125.23,0.063]
[1744782786176,80.27063418,125.24,125.22,0.063]
[1744782786377,33.98466943,125.24,125.22,0.063]
[1744782786580,23.47719295,125.25,125.22,0.063]
[1744782786801,9.25719295,125.24,125.22,0.063]
[1744782787578,9.25719295,125.23,125.22,0.063]
[1744782789200,14.46844068,125.23,125.22,0.063]
[1744782792011,33.98368791,125.26,125.22,0.063]
[1744782792181,14.46844068,125.25,125.22,0.063]
[1744782792383,48.45212859,125.26,125.22,0.063]
[1744782792578,14.46844068,125.23,125.22,0.063]
[1744782795517,22.45374771,125.23,125.22,0.063]
[1744782798997,14.46844068,125.23,125.22,0.063]
[1744782799203,45.95848634,125.26,125.22,0.063]
[1744782799204,22.45272891,125.25,125.22,0.063]
[1744782802607,7.98428823,125.25,125.22,0.063]
[1744782803617,57.4715993,125.3,125.22,0.063]
[1744782803829,57.4715993,125.3,125.22,18.71264886]
[1744782803830,14.46844068,125.26,125.22,18.71264886]
[1744782804119,40.46844068,125.27,125.22,33.18108954]
[1744782804619,22.44992363,125.29,125.24,14.46844068]
[1744782805005,14.46844068,125.29,125.24,14.46844068]
[1744782805202,62.66959677,125.3,125.25,15.97564068]
[1744782805514,14.46844068,125.3,125.26,7.98339453]
[1744782806823,22.44932504,125.3,125.26,7.98339453]
[1744782807316,14.46844068,125.3,125.26,7.98339453]
[1744782807627,0.03,125.31,125.29,14.46844068]
[1744782808011,0.03,125.31,125.3,14.46844068]
[1744782808315,0.03,125.31,125.29,33.11808954]
[1744782809125,0.03,125.31,125.3,14.46844068]
[1744782809314,0.03,125.31,125.3,9.24284759]
[1744782809625,0.03,125.31,125.29,35.87358236]
[1744782810120,0.03,125.31,125.3,27.89249645]
[1744782811309,0.03,125.31,125.3,34.60850691]
[1744782811833,0.03,125.31,125.3,42.58935287]
[1744782812129,0.03,125.31,125.3,57.02961092]
[1744782812303,0.03,125.31,125.3,42.58935287]
[1744782813118,0.03,125.31,125.3,28.14909482]
[1744782815324,0.03,125.31,125.28,20.3088]
[1744782815528,0.03,125.31,125.29,33.08990691]
[1744782815712,0.03,125.31,125.3,14.44025805]
[1744782816119,0.03,125.31,125.3,22.42110401]
[1744782816840,0.03,125.31,125.3,55.51101092]
[1744782817137,0.03,125.33,125.31,18.64964886]
[1744782817315,0.03,125.33,125.32,33.08990691]
[1744782818252,0.03,125.33,125.32,41.0694792]
[1744782824836,0.03,125.33,125.31,26.62966969]
[1744782825039,0.03,125.33,125.31,41.06992774]
[1744782831838,0.03,125.33,125.32,33.08990691]
[1744782833159,0.03,125.33,125.32,27.88670375]
[1744782833464,0.03,125.33,125.32,35.86627604]
[1744782836462,0.03,125.33,125.32,26.62922115]
[1744782836777,0.03,125.33,125.32,35.86627604]
[1744782838766,0.03,125.33,125.32,26.62922115]
[1744782841874,0.03,125.33,125.31,26.62965752]
[1744782843371,0.03,125.33,125.31,35.86671241]
[1744782848473,0.03,125.33,125.31,26.62965752]
[1744782848680,0.03,125.33,125.31,35.86671241]
[1744782852780,0.03,125.33,125.31,26.62965752]
[1744782853482,9.26705489,125.33,125.29,18.64964886]
[1744782853771,9.23705489,125.31,125.28,22.20195748]
[1744782853956,9.23705489,125.3,125.28,14.22]
[1744782854146,9.23705489,125.3,125.26,7.98306477]
[1744782854352,9.23705489,125.29,125.25,3.063]
[1744782854562,9.23705489,125.29,125.25,11.04669929]
[1744782855058,9.23705489,125.29,125.25,20.28375418]
[1744782855791,1.531,125.32,125.26,26.63280426]
[1744782855967,9.23705489,125.3,125.26,17.22021029]
[1744782856279,9.23705489,125.3,125.26,26.63280426]
[1744782856465,9.23705489,125.31,125.26,35.86985915]
[1744782857083,26.03,125.33,125.28,17.21917494]
[1744782857379,9.23705489,125.32,125.28,7.98212005]
[1744782859377,9.23705489,125.31,125.26,18.64964886]
[1744782859689,7.97985235,125.32,125.26,27.88670375]
[1744782860187,7.97985235,125.32,125.27,9.23705489]
[1744782860188,9.23705489,125.32,125.27,9.23705489]
[1744782860388,9.26705489,125.33,125.28,9.23705489]
[1744782860983,17.24616533,125.33,125.28,17.21875706]
[1744782861189,17.24616533,125.33,125.28,7.98170217]
[1744782861190,9.23705489,125.32,125.28,7.98170217]
[1744782862887,9.23705489,125.31,125.27,7.98248015]
[1744782863080,8.00911044,125.33,125.27,7.98248015]
[1744782863471,9.23705489,125.31,125.27,7.98248015]
[1744782863875,9.23705489,125.31,125.27,17.21953504]
[1744782864092,9.23705489,125.31,125.27,7.98248015]
[1744782864476,17.21677496,125.32,125.27,17.21953504]
[1744782866579,9.23705489,125.31,125.26,17.22019353]
[1744782866888,9.23705489,125.29,125.25,20.28377693]
[1744782867274,9.23705489,125.3,125.25,20.28377693]
[1744782870165,17.21791538,125.3,125.25,20.28377693]
[1744782870390,9.23705489,125.3,125.26,18.64964886]
[1744782870566,9.23705489,125.31,125.26,27.88670375]
[1744782871267,8.00922858,125.33,125.26,27.88670375]
[1744782871493,9.23705489,125.31,125.26,27.88670375]
[1744782872495,8.00922858,125.33,125.27,7.98275724]
[1744782872695,9.23705489,125.31,125.27,7.98275724]
[1744782877294,8.0089356,125.33,125.27,7.98275724]
[1744782877488,9.23705489,125.31,125.27,7.98275724]
[1744782877682,9.23705489,125.32,125.28,18.64964886]
[1744782878689,9.26705489,125.33,125.28,27.88670375]
[1744782878889,0.03,125.33,125.29,9.23705489]
[1744782879098,0.03,125.33,125.3,27.88670375]
[1744782880897,0.03,125.33,125.31,7.98020908]
[1744782881994,0.03,125.33,125.3,35.8672763]
[1744782883703,0.03,125.33,125.29,7.7491]
[1744782883704,9.26705489,125.33,125.29,15.73026666]
[1744782883902,0.03,125.33,125.29,24.96732155]
[1744782885002,0.03,125.33,125.3,9.23705489]
[1744782886884,0.03,125.33,125.31,7.98020908]
[1744782888400,0.03,125.33,125.32,27.88670375]
[1744782890509,0.03,125.33,125.32,35.86627604]
[1744782892306,0.03,125.33,125.32,49.90627604]
[1744782893189,0.03,125.33,125.32,57.45927604]
[1744782894203,0.03,125.33,125.32,48.22222115]
[1744782894509,0.03,125.33,125.32,40.66922115]
[1744782894709,0.03,125.33,125.32,32.68964886]
[1744782894913,0.03,125.33,125.32,14.04]
[1744782895489,0.03,125.33,125.32,22.01957229]
[1744782895690,0.03,125.33,125.32,49.90627604]
[1744782896916,0.03,125.33,125.32,40.66922115]
[1744782901621,0.03,125.33,125.3,26.63049482]
[1744782901912,0.03,125.33,125.3,35.87056944]
[1744782902115,0.03,125.33,125.32,9.24007462]
[1744782902797,0.03,125.33,125.3,52.63049482]
[1744782902997,0.03,125.33,125.31,9.24007462]
[1744782904110,0.03,125.33,125.32,7.97957229]
[1744782907097,0.03,125.33,125.32,26.62922115]
[1744782907299,0.03,125.33,125.32,35.86929577]
[1744782910416,0.03,125.33,125.32,26.62922115]
[1744782910624,0.03,125.33,125.32,35.86929577]
[1744782913520,0.03,125.33,125.32,17.21964691]
[1744782914722,0.03,125.33,125.32,7.97957229]
[1744782914921,0.03,125.33,125.32,17.21964691]
[1744782915927,0.03,125.33,125.32,7.97957229]
[1744782923532,0.03,125.33,125.32,26.62922115]
[1744782925035,0.03,125.33,125.3,26.0]
[1744782925237,0.03,125.33,125.3,26.63049482]
[1744782925715,0.03,125.33,125.32,18.64964886]
[1744782926632,0.03,125.33,125.31,27.88972348]
[1744782926809,0.03,125.33,125.3,27.93296088]
[1744782926810,9.24007462,125.32,125.28,7.98212005]
[1744782927014,9.24007462,125.3,125.26,27.94171827]
[1744782927410,9.24007462,125.3,125.27,18.64964886]
[1744782928031,9.24007462,125.3,125.27,26.63189149]
[1744782929839,9.24007462,125.3,125.27,18.64964886]
[1744782930136,9.24007462,125.3,125.27,26.63226112]
[1744782930443,9.24007462,125.3,125.27,7.98261226]
[1744782931529,9.24007462,125.29,125.26,26.63290399]
[1744782932739,9.24007462,125.3,125.26,26.63290399]
[1744782934422,9.24007462,125.29,125.25,8.04699687]
[1744782934740,9.24007462,125.27,125.25,0.063]
[1744782935248,9.24007462,125.29,125.25,18.71264886]
[1744782935624,9.24007462,125.29,125.25,26.69663369]
[1744782936442,7.98086256,125.3,125.25,26.69663369]
[1744782936621,9.24007462,125.29,125.25,26.69663369]
[1744782938437,9.24007462,125.28,125.25,0.063]
[1744782939743,7.98175987,125.29,125.25,0.063]
[1744782939949,9.24007462,125.28,125.25,0.063]
[1744782940651,9.24007462,125.3,125.26,9.24007462]
[1744782941753,43.22059107,125.31,125.26,17.22296665]
[1744782941925,9.24007462,125.31,125.27,18.64964886]
[1744782944544,9.53633332,125.32,125.27,26.63208966]
[1744782944747,9.24007462,125.31,125.27,26.63208966]
[1744782945245,9.24007462,125.3,125.26,7.98310973]
[1744782945637,9.24007462,125.29,125.26,7.98310973]
[1744782946149,9.24007462,125.28,125.25,0.063]
[1744782947546,17.22219658,125.28,125.25,0.063]
[1744782948625,9.24007462,125.27,125.25,0.063]
[1744782950652,17.22346915,125.26,125.25,0.063]
[1744782951228,9.24007462,125.26,125.25,0.063]
[1744782953935,17.22346915,125.26,125.25,0.063]
[1744782955460,9.24007462,125.26,125.25,0.063]
[1744782956157,17.22346915,125.26,125.25,0.063]
[1744782957962,9.24007462,125.26,125.25,0.063]
[1744782958665,43.22310431,125.27,125.25,0.063]
[1744782958953,33.98302969,125.27,125.25,0.063]
[1744782959159,9.24007462,125.28,125.25,0.063]
[1744782959734,9.24007462,125.3,125.26,7.98339453]
[1744782959954,17.2209826,125.3,125.26,7.98339453]
[1744782960342,43.2209826,125.3,125.25,17.28681828]
[1744782960542,9.24007462,125.29,125.25,8.04674366]
[1744782960747,9.24007462,125.29,125.25,0.063]
[1744782960964,9.24007462,125.26,125.25,0.063]
[1744782961457,35.24007462,125.27,125.25,0.063]
[1744782963660,43.2228336,125.27,125.25,0.063]
[1744782963863,7.98236861,125.28,125.25,0.063]
[1744782964042,9.24007462,125.27,125.25,0.063]
[1744782965164,17.22298261,125.27,125.25,0.063]
[1744782966644,9.24007462,125.26,125.25,0.063]
[1744782969064,9.24007462,125.27,125.25,0.063]
[1744782969366,9.24007462,125.26,125.25,0.063]
[1744782970472,17.2230216,125.27,125.25,0.063]
[1744782971262,9.24007462,125.26,125.25,0.063]
[1744782973256,17.22346915,125.26,125.25,0.063]
[1744782975153,26.0,125.26,125.25,0.063]
[1744782975352,35.24007462,125.26,125.25,0.063]
[1744782976355,43.22346915,125.26,125.25,0.063]
[1744782976872,9.24007462,125.26,125.25,0.063]
[1744782977078,7.98307762,125.27,125.25,0.063]
[1744782977252,17.22315224,125.27,125.25,0.063]
[1744782980376,9.24007462,125.27,125.25,0.063]
[1744782981173,17.22296833,125.27,125.25,0.063]
[1744782981753,9.24007462,125.26,125.25,0.063]
[1744782982076,17.22346915,125.26,125.25,0.063]
[1744782983280,35.24007462,125.27,125.25,0.063]
[1744782983473,43.22302063,125.27,125.25,0.063]
[1744782984784,8.00922927,125.33,125.27,18.64964886]
[1744782985079,0.03,125.33,125.29,9.24007462]
[1744782985256,17.24903085,125.33,125.28,9.24007462]
[1744782986176,17.24903085,125.33,125.28,17.22183364]
[1744782987464,9.27007462,125.33,125.28,17.22183364]
[1744782988664,9.24007462,125.31,125.27,7.98253346]
[1744782990976,9.24007462,125.31,125.27,17.22260808]
[1744782991375,9.24007462,125.31,125.27,7.98253346]
[1744782991573,9.24007462,125.31,125.27,17.22260808]
[1744782992378,9.24007462,125.32,125.27,17.22260808]
[1744782993482,9.24007462,125.32,125.27,7.98253346]
[1744782993781,9.24007462,125.31,125.27,17.22260808]
[1744782994271,9.24007462,125.32,125.27,17.22260808]
[1744782994981,9.24007462,125.31,125.27,17.22260808]
[1744782996576,17.21976069,125.32,125.27,17.22260808]
[1744782997578,9.24007462,125.32,125.27,17.22260808]
[1744782998964,17.21981376,125.32,125.27,17.22260808]
[1744782999165,9.24007462,125.31,125.27,17.22260808]
[1744782999884,8.0089356,125.33,125.27,17.22260808]